Cogmind - Beta 14 @@@ ROGUE MODE // 2024.09.29 @ 21:26:27 Player: Cereal Killer Result: Destroyed by N2-6QC(g) with Salvaging Laser Performance ------------- Evolutions (0) 0 Regions Visited (4) 800 Robots Destroyed (18) 90 Value Destroyed (510) 510 Prototype IDs (21) 420 Alien Tech Used (0) 0 Bonus (300) 300 TOTAL SCORE: 2120 Bonus ------- Registered with UFD 300 Cogmind --------- Core Integrity 0/250 Matter 290/300 Energy 265/265 System Corruption 0% Temperature Warm (140) Movement Rolling (120) Ox2 Location -9/Scraptown Parts ------- > --- POWER (1) -------- Improved Ion Engine > --- PROPULSION (2) --- Armored Wheel Armored Wheel > --- UTILITY (2) ------ High-capacity Storage Unit Makeshift Light Armor Plating > --- WEAPON (2) ------- Overtuned Quantum Rifle Barrage Gun > --- INVENTORY (20) --- Improved Ion Engine Overtuned Huge Scrapsphere Flightbrick Advanced Targeting Computer Improved Hacking Suite Salvaging Laser Light EM Pulse Cannon Gauss Rifle Coil Gun Coil Gun Shock Bomb Launcher Subdweller Shrapnel Launcher CPS Tube (2) Vortex Trap DRS Beacon (Ready) Botcube Peak State ------------ > --- POWER ------------ Improved Ion Engine > --- PROPULSION ------- Armored Wheel Armored Wheel > --- UTILITY ---------- High-capacity Storage Unit Makeshift Light Armor Plating > --- WEAPON ----------- Overtuned Quantum Rifle Barrage Gun > --- INVENTORY -------- Improved Ion Engine Overtuned Huge Scrapsphere Flightbrick Advanced Targeting Computer Improved Hacking Suite Salvaging Laser Light EM Pulse Cannon Gauss Rifle Coil Gun Coil Gun Shock Bomb Launcher Subdweller Shrapnel Launcher CPS Tube Vortex Trap DRS Beacon Botcube [Rating: 31] Favorites ----------- Power Ion Engine Engine Ion Engine Propulsion Armored Wheel Wheel Armored Wheel Utility Makeshift Light Armor Plating Device Subdweller Optics Storage Small Storage Unit Protection Makeshift Light Armor Plating Weapon Barrage Gun Energy Gun Subdweller Laser Energy Cannon Light EM Pulse Cannon Ballistic Gun Barrage Gun Ballistic Cannon Battle Cannon Launcher Rocket Launcher Slashing Weapon Ripper Build | -11 -10 -10 -9 -9 ------- Run | Yrd Mat Sub Rec Scr Slots Evolved . | . . . . . Power . | . . . . . Propulsion . | . . . . . Utility . | . . . . . Weapon . | . . . . . Parts Attached 43 | 7 2 26 . 8 Power 3 | 1 . 1 . 1 Engine 3 | 1 . 1 . 1 Core . | . . . . . Reactor . | . . . . . Propulsion 6 | 2 . 2 . 2 Treads . | . . . . . Leg . | . . . . . Wheel 6 | 2 . 2 . 2 Hover . | . . . . . Flight . | . . . . . Utility 7 | 1 1 4 . 1 Device 2 | . . 2 . . Storage 2 | 1 . . . 1 Processor . | . . . . . Hackware . | . . . . . Protection 3 | . 1 2 . . Artifact . | . . . . . Weapon 27 | 3 1 19 . 4 Energy Gun 7 | 2 . 4 . 1 Energy Cannon 1 | . . . . 1 Ballistic Gun 5 | 1 . 2 . 2 Ballistic Cannon 6 | . . 6 . . Launcher 6 | . 1 5 . . Special Weapon . | . . . . . Impact Weapon . | . . . . . Slashing Weapon 2 | . . 2 . . Piercing Weapon . | . . . . . Special Melee Weapon . | . . . . . Unidentified Prototypes . | . . . . . Parts Lost 7 | . . 7 . . Power 1 | . . 1 . . Propulsion 2 | . . 2 . . Utility 1 | . . 1 . . Weapon 3 | . . 3 . . Highest Loss Streak 4 | . . 4 . . To Critical Strikes . | . . . . . Average Slot Usage (%) 93 | . 97 88 100 100 Engine 13 | . 14 12 14 14 Wheel 23 | . 28 18 28 28 Device 2 | . . 4 . . Storage 14 | . 14 14 14 14 Protection 11 | . 12 9 14 14 Energy Gun 8 | . 11 14 . 1 Ballistic Gun 14 | . 14 5 14 25 Ballistic Cannon 3 | . . 5 14 1 Peak Build Rating 31 | 6 8 20 19 31 Average Rating 18 | 4 7 15 19 25 On Entrance 10 | . 6 8 19 19 Naked Turns . | . . . . . Heaviest Build 60 | 14 17 23 20 60 Greatest Support 36 | 20 20 36 16 24 Greatest Overweight (x) 5 | . . 5 1 4 Average Overweight (x) 1 | . . . 1 2 Largest Inventory Capacity 20 | 8 8 8 8 20 Average Capacity 11 | 6 8 8 8 16 Most Carried 20 | 5 7 8 7 20 Average Carried 10 | 2 4 7 7 15 Final Capacity 20 | 8 8 8 8 20 Final Carried 20 | 2 7 7 7 20 Class Distribution -------------------- 54% | Mutant 45% | Derelict-Mutant Dominant Class ---------------- Mutant | -10/Materials Mutant | -10/Subcaves Derelict-Mutant | -9/Recycling Derelict-Mutant | -9/Scraptown Resources | -11 -10 -10 -9 -9 ----------- Run | Yrd Mat Sub Rec Scr Matter Collected 1101 | 263 . 525 . 313 Remotely . | . . . . . Salvage Created 321 | . 37 284 . . Parts 28 | . 4 24 . . Haulers Intercepted . | . . . . . Recyclers Shooed . | . . . . . Parts Field Recycled . | . . . . . Retrieved Matter . | . . . . . Parts Self-Destructed 12 | . . 12 . . Prevented . | . . . . . Kills | -11 -10 -10 -9 -9 ------- Run | Yrd Mat Sub Rec Scr Combat Hostiles Destroyed 15 | . 1 14 . . Guns 6 | . 1 5 . . AOE 9 | . . 9 . . Classes Destroyed 6 | . 2 4 . . Tunneler 1 | . 1 . . . Turret 2 | . . 2 . . Swarmer 5 | . . 5 . . Grunt 2 | . 1 1 . . Sentry 1 | . . 1 . . Subdweller 7 | . . 7 . . Best Kill Streak 6 | . 1 6 . . Combat Bots Only 4 | . 1 4 . . Max Kills in Single Turn 3 | . 1 3 . . Gunslinging . | . . . . . Exploded 2 | . . 2 . . Melee . | . . . . . Uniques/NPCs Destroyed . | . . . . . Combat | -11 -10 -10 -9 -9 -------- Run | Yrd Mat Sub Rec Scr Hostile Shots Fired 79 | . 1 69 . 9 Missed 21 | . . 19 . 2 Damage Taken 1208 | . 22 1115 . 71 Core 255 | . 6 230 . 19 Absorbed by Shields . | . . . . . Redirected to Shielding 3 | . 3 . . . Core Remaining (%) 100 | 100 . . . . Volleys Fired 51 | . 3 44 . 4 Largest 2 | . 2 2 . 1 Hottest 150 | . 53 150 . 120 Shots Fired 74 | . 6 65 . 3 Gun 45 | . 3 39 . 3 Cannon 15 | . . 15 . . Launcher 14 | . 3 11 . . Special . | . . . . . Kinetic 29 | . 3 26 . . Thermal 35 | . . 32 . 3 Explosive 10 | . 3 7 . . Electromagnetic . | . . . . . Robot Hit Streak 10 | . 2 10 . . Robot Miss Streak 2 | . . 2 . 2 Penetration Max . | . . . . . Secondary Targets . | . . . . . Shots Hit Robots 39 | . 2 37 . . Core Hits 31 | . 3 28 . . Critical Kills . | . . . . . Critical Parts Destroyed . | . . . . . Critical Strikes 2 | . . 2 . . Destroy 1 | . . 1 . . Blast 1 | . . 1 . . Melee Attacks 5 | . . 5 . . Impact . | . . . . . Slashing 5 | . . 5 . . Piercing . | . . . . . Sneak Attacks . | . . . . . Combat Hostiles . | . . . . . Follow-up Attacks . | . . . . . Damage Inflicted 1638 | . 93 1545 . . Guns 441 | . 14 427 . . Cannons 295 | . . 295 . . Explosions 902 | . 79 823 . . Melee . | . . . . . Ramming . | . . . . . Kinetic 839 | . 14 825 . . Thermal 349 | . . 349 . . Explosive 450 | . 79 371 . . Electromagnetic . | . . . . . Impact . | . . . . . Slashing . | . . . . . Piercing . | . . . . . Highest Corruption . | . . . . . Average Corruption . | . . . . . Corruption Purged . | . . . . . Corruption Blocked . | . . . . . Overload Shots 3 | . . 3 . . Effects 1 | . . 1 . . Heat Surge 1 | . . 1 . . Overflow Damage 28 | . . 28 . . Projectiles . | . . . . . Explosions 28 | . . 28 . . Melee . | . . . . . Knockbacks 3 | . . 3 . . Impact . | . . . . . Kinetic 3 | . . 3 . . Secondary . | . . . . . Self-Inflicted Damage 141 | . 13 128 . . Shots 4 | . 1 3 . . Rammed . | . . . . . Targets Rammed . | . . . . . Kicked . | . . . . . Crushed . | . . . . . Highest Temperature 360 | . . 360 . 198 Average Temperature 77 | . . 73 . 87 Received Heat Transfer 315 | . 6 297 . 12 Effects 1 | . . 1 . . Energy Bleed 1 | . . 1 . . Siege Activations . | . . . . . Robots Corrupted . | . . . . . Combat Hostiles . | . . . . . Parts Fried . | . . . . . Impact Corruptions . | . . . . . Robots Melted . | . . . . . Combat Hostiles . | . . . . . Parts Melted 2 | . . 2 . . Heat Transferred 510 | . . 510 . . Parts Sabotaged . | . . . . . Parts Stolen . | . . . . . Parts Stripped . | . . . . . Power Chain Reactions . | . . . . . Alert | -11 -10 -10 -9 -9 ------- Run | Yrd Mat Sub Rec Scr Peak Influence 70 | . 70 . 67 . Initial 52 | . . . 52 . Average 36 | . 14 . 63 . Maximum Alert Level . | . . . . . Low Security (%) 100 | 100 100 . 100 . Level 1 . | . . . . . Level 2 . | . . . . . Level 3 . | . . . . . Level 4 . | . . . . . Level 5 . | . . . . . High Security . | . . . . . Max Security . | . . . . . Squads Dispatched . | . . . . . Investigation . | . . . . . Extermination . | . . . . . Reinforcement . | . . . . . Assault . | . . . . . Garrison . | . . . . . Intercept . | . . . . . Searches Triggered . | . . . . . Construction Impeded . | . . . . . Haulers Reinforced . | . . . . . Active Scanning Responses . | . . . . . Cargo Convoy Interrupts . | . . . . . Stealth | -11 -10 -10 -9 -9 --------- Run | Yrd Mat Sub Rec Scr Distress Signals 1 | . 1 . . . Communications Jammed . | . . . . . Distress Signals . | . . . . . Times Spotted 24 | . 2 20 . 2 Peak Tracking Total 6 | . 4 6 . 2 Tactical Retreats 2 | . 1 1 . . Traps | -11 -10 -10 -9 -9 ------- Run | Yrd Mat Sub Rec Scr Traps Triggered 2 | . . 2 . . Indirectly . | . . . . . Trap Hack Attempts . | . . . . . Triggered . | . . . . . Disarmed . | . . . . . Reprogrammed . | . . . . . Reused . | . . . . . Traps Extracted . | . . . . . Installed . | . . . . . Triggered . | . . . . . Most Traps Carried 1 | . . . . 1 Machines | -11 -10 -10 -9 -9 ---------- Run | Yrd Mat Sub Rec Scr Machines Disabled 6 | . . 5 . 1 Max in Single Turn 3 | . . 3 . 1 Machines Repaired . | . . . . . Machines Dismantled . | . . . . . Machines Sabotaged . | . . . . . Overloaded Fab Kills . | . . . . . Hacking | -11 -10 -10 -9 -9 --------- Run | Yrd Mat Sub Rec Scr Machines Accessed 14 | . 1 2 4 7 Terminals 4 | . 1 . 3 . Fabricators . | . . . . . Repair Stations . | . . . . . Recycling Units . | . . . . . Scanalyzers . | . . . . . Garrison Access . | . . . . . Total Hacks 54 | . 2 6 15 31 Successful 47 | . 1 6 9 31 Failed 7 | . 1 . 6 . Catastrophic . | . . . . . Database Lockouts . | . . . . . Manual 7 | . 2 . 5 . Terminals 12 | . 2 . 10 . Fabricators . | . . . . . Repair Stations . | . . . . . Recycling Units . | . . . . . Scanalyzers . | . . . . . Garrison Access . | . . . . . Terminal Hacks 45 | . . 6 8 31 Record 32 | . . 5 5 22 Robot Analysis 9 | . . . 1 8 Prototype ID Bank 2 | . . . 2 . Derelict Proto ID Bank 2 | . . 1 . 1 Fabricator Hacks . | . . . . . Repair Station Hacks . | . . . . . Recycling Unit Hacks . | . . . . . Scanalyzer . | . . . . . Garrison Access Hacks . | . . . . . Unauthorized Hacks 2 | . 1 . 1 . Terminals 2 | . 1 . 1 . Botnet 2 | . 1 . 1 . Fabricators . | . . . . . Repair Stations . | . . . . . Recycling Units . | . . . . . Scanalyzers . | . . . . . Garrison Access . | . . . . . Data Cores Recovered . | . . . . . Used . | . . . . . Hacking Detections 4 | . 1 . 3 . Full Trace Events 3 | . . . 3 . Feedback Events . | . . . . . Feedback Blocked . | . . . . . Robot Schematics Acquired . | . . . . . Robots Built . | . . . . . Authchips . | . . . . . Time . | . . . . . Total Robot Build Rating . | . . . . . Part Schematics Acquired . | . . . . . Parts Built . | . . . . . Authchips . | . . . . . Time . | . . . . . Total Part Build Rating . | . . . . . Parts Repaired . | . . . . . Time . | . . . . . Parts Recycled . | . . . . . Recycled Matter . | . . . . . Retrieved Matter . | . . . . . Retrieved Components . | . . . . . Parts Scanalyzed . | . . . . . Part Schematics Acquired . | . . . . . Parts Damaged . | . . . . . Bothacking | -11 -10 -10 -9 -9 ------------ Run | Yrd Mat Sub Rec Scr Used RIF Installer . | . . . . . Robots Hacked . | . . . . . Non-combat . | . . . . . Combat . | . . . . . Robot Hacks Applied . | . . . . . Relay Couplers Released . | . . . . . Fabnet Peak Effective % . | . . . . . Robots Rewired . | . . . . . Allies Hacked . | . . . . . Hacks Repelled . | . . . . . Allies | -11 -10 -10 -9 -9 -------- Run | Yrd Mat Sub Rec Scr Total Allies . | . . . . . Largest Group . | . . . . . Highest-Rated Group . | . . . . . Highest-Rated Ally . | . . . . . Total Orders . | . . . . . Ally Attacks . | . . . . . Total Damage . | . . . . . Kills . | . . . . . Allies Corrupted . | . . . . . Allies Melted . | . . . . . Intel | -11 -10 -10 -9 -9 ------- Run | Yrd Mat Sub Rec Scr Robot Analysis Total 9 | . . . 1 8 Derelict Logs Recovered 5 | . . 2 . 3 Drone Launches . | . . . . . Drone Recoveries . | . . . . . Exploration | -11 -10 -10 -9 -9 ------------- Run | Yrd Mat Sub Rec Scr Turns Passed 3876 | 48 137 1990 184 1517 Spaces Moved 2961 | 42 149 1556 161 1053 Core 6 | 2 . 4 . . Treads . | . . . . . Legs . | . . . . . Wheels 2955 | 40 149 1552 161 1053 Hover . | . . . . . Flight . | . . . . . Fastest Speed 50 | 50 80 80 115 105 Average Speed 111 | 78 80 104 115 126 Slowest Speed 300 | 80 80 300 115 150 Overloaded Moves . | . . . . . Propulsion Burnouts . | . . . . . Robots Hopped . | . . . . . Cave-ins Triggered . | . . . . . Exploration Rate (%) 47 | 3 19 81 52 82 Regions Visited 4 Branch Regions 3 Pre-discovered Areas . | . . . . . Known Exits Taken 1 | . . 1 . . Unknown Exits Taken 3 | 1 1 . 1 . Scrap Searched 18 | . . 11 . 7 Spaces Dug . | . . . . . Terrain Destroyed 103 | . 16 87 . . Melee . | . . . . . Projectile 1 | . . 1 . . AOE 102 | . 16 86 . . Terrain Rammed . | . . . . . Walls Destroyed . | . . . . . Machines Disabled . | . . . . . Actions | -11 -10 -10 -9 -9 --------- Run | Yrd Mat Sub Rec Scr Total 3471 | 56 160 1852 160 1243 Wait 337 | . 1 189 . 147 Move 2957 | 41 148 1555 160 1053 Hop . | . . . . . Pick Up 48 | 8 6 15 . 19 Fast Attach 8 | . . 6 . 2 Attach 12 | 6 1 5 . . Detach . | . . . . . Swap 23 | 1 1 15 . 6 Drop 30 | . . 18 . 12 Fire 51 | . 3 44 . 4 Melee 5 | . . 5 . . Ram . | . . . . . Kick . | . . . . . Crush . | . . . . . Escape Stasis . | . . . . . Rewire . | . . . . . Trap . | . . . . . Miscellaneous . | . . . . . Route ------- -11/Scrapyard -10/Materials -10/Subcaves (discovered 2 exits: [*Mat] / *Rec) -9/Recycling -9/Scraptown (discovered 1 exit: [*Fac]) History --------- Turn | Location | Event 11 | -11/Scrapyard | Discovered new exit (range 16) 49 | -11/Scrapyard | Entered Materials 179 | -10/Materials | Discovered new exit (range 8) 186 | -10/Materials | Entered Subcaves 308 | -10/Subcaves | Build established: Mutant 362 | -10/Subcaves | Visited 4L-MR0's lab 372 | -10/Subcaves | Found Flightbrick 480 | -10/Subcaves | Learned Materials security intel 529 | -10/Subcaves | Disturbed a concealed Subdweller 770 | -10/Subcaves | Lost 4 parts (2n2w) 908 | -10/Subcaves | Core integrity fell below 50% 1115 | -10/Subcaves | Discovered new exit (range 9) 1117 | -10/Subcaves | Curiously followed by a Cobbler waking with a query about "LVR3C" 2059 | -10/Subcaves | Visited Clippyterm 2062 | -10/Subcaves | Identified exit to Recycling 2062 | -10/Subcaves | Learned Factory emergency access door positions 2143 | -10/Subcaves | Core integrity fell below 20% 2176 | -10/Subcaves | Entered Recycling 2326 | -9/Recycling | Scanned before Scraplab entrance 2342 | -9/Recycling | Entered Scraplab 2358 | -9/Recycling | Discovered new exit (range 2) 2360 | -9/Recycling | Entered Scraptown 2426 | -9/Scraptown | Build established: Derelict-Mutant 2573 | -9/Scraptown | Heard Great Nut preacher, LISTEN AND RECITE! 2592 | -9/Scraptown | Scanned Subdweller tech in exchange for log data 2594 | -9/Scraptown | Learned Factory garrison access intel 2595 | -9/Scraptown | Learned Factory interactive machine intel 2596 | -9/Scraptown | Learned 8 Research zone layouts 2605 | -9/Scraptown | Discovered new exit (range 11) 2677 | -9/Scraptown | Visited Symbiants 2713 | -9/Scraptown | Visited SPCMW 2736 | -9/Scraptown | Visited Bundlers 2848 | -9/Scraptown | Visited Fellowship of the Rings 2899 | -9/Scraptown | Visited UFD Registry 2899 | -9/Scraptown | Registered with UFD as "Protonchip" 2920 | -9/Scraptown | Visited TADAMA 2948 | -9/Scraptown | Visited Supply Room 3019 | -9/Scraptown | Visited Cave Peace 3131 | -9/Scraptown | Visited Abandonware Association 3152 | -9/Scraptown | Learned abandonware demo "KABOOM.EXE" 3152 | -9/Scraptown | Learned abandonware demo "MELTYB.EXE" 3185 | -9/Scraptown | Visited Botcube Research 3200 | -9/Scraptown | Found Botcube 3225 | -9/Scraptown | Visited Science Guys 3441 | -9/Scraptown | Visited Analyses Database 3518 | -9/Scraptown | Visited Derelict Rescue Squad 3526 | -9/Scraptown | Found DRS Beacon 3544 | -9/Scraptown | Visited Modified Component R&D 3614 | -9/Scraptown | Visited Science Testing Area 3634 | -9/Scraptown | Visited Chapter 10 3678 | -9/Scraptown | Visited Scrap Suit Storage 3841 | -9/Scraptown | Attacked by Scraptown defenders 3877 | -9/Scraptown | Destroyed by N2-6QC(g) with Salvaging Laser Last Messages --------------- relatively large in order to best carry out its functions, especially involving larger components. This bulkiness combined with the required tight integration with other systems also means it cannot be easily removed without effectively destroying the suit itself. 03693_ Ovr. Quantum Rifle suddenly begins malfunctioning. 03775_ RD-BNK: "RECYCLE ALL THE THINGS!" 03841_ Ovr. Quantum Rifle recovered from malfunction. 03841_ Super Scrap Suits breached. 03841_ ANNOUNCEMENT: Intruder alert! Defend Scraptown! 03843_ LOCAL NARROWCAST: You don't have permission to be in here, but that's okay because it's just doing its job as a honeypot for traitors, TRAITOR! 03868_ Machine disabled. 03871_ CQ-JZM(p): "How dare you!" Map ----- +----------------------------------------------------+ | ""#####??????????????????????????????????????????? | | "#??????????????????????????????????????????????? | | ""#??????????????????????????????????????????????? | | ""#??????????????????????????????????????????????? | | ""#??????????????????????????????????????????????? | | ""#??????????????????????????????????????????????? | | ###?????????????????????####?????????????????????? | | ??????????????????####### #??############???????? | | ??????????????????#"! #??#""""""""""#???????? | | ??????????????????#" "# #??# " ##?######## | | ########??????????## X####??#"" #?# | | #??????????#" "#??#"" #?# | | "" "" #??????????#"! !"#??#"""" #?# | | ""X"" #??????????#" !"#??#"" " #?# | | """"" #??????????#"! !"#??#"""" #?# | | """ #??????????#"! !"#??#"" #?# | | " #??????????## ##??#" ###? | | #??????????# #??# #??? | | #??????????##### ####??##### ######????# #? | | ###### ####???????##### ########### ########### ## | | #???????#"""" """"""""""" """"""""""" "" | | #???????# p | | #???????#" g | | #???????#" | | #???????#" | | # #???????#" @ | | # #????"""" """"""""""""""""""""""""" | | # #?????""" """"""""""""""""""""""""" | | # #?????""" ""###### ############### | | # #?????""" ""# ##???????? | | # #?????""" ""# X"#???????? | | # ###?#?""" ""# "" "" ##???????? | | # ""#"#?""" ""# "" "" X"#??????## | | # """"#??"" ""# " " ######### | | # ""###??##" "" "" | | # ###?????#" "" "" | | # #########" ""# " " ######### | | # ""# "" "" ""???????## | | # ""# "" "" #????????? | | # ""# ""????????? | | # ""# #????????? | | # ""###### ############### | | """"""""""""""""""""""""" | | """"""""""""""""""""""""" | | | | | | | | #""""#" | | #????#" | | #????#"""""" """"""""""" """"""""""" | +----------------------------------------------------+ Best States ------------- Heat Dissipation 25 Energy Generation 15 Energy Capacity 265 Matter Stores 300 Matter Capacity 300 Sight Range 21 Terrain Scan Density 10 Armor Coverage 100 Weapon Shielding 33 Evasion (%) 44 Item Schematics ----------------- None Robot Schematics ------------------ None Fabricated ------------ Nothing Alien Tech Used ----------------- None Achievements -------------- None Challenges ------------ None Game ------ Seed FissionAntimatterLegs Manual? 0 Play Time 00:38:20 Cumulative 216.6 hours Start 2024.09.29 @ 20:42:17 End 2024.09.29 @ 21:26:27 Sessions 1 Manual Loads 0 Difficulty Rogue Special Mode None Game No. 178 Rogue 169 Adventurer 9 Explorer 0 Win Type - Total 1 Types 1/0/0/0/0/0/0/0/0 Lore% 73 Gallery% 71 Achievement% 58 Wizard Run 0 Options --------- Layout 1 ASCII 0 Keyboard 0 Movement Numpad Keybinds 0 Fullscreen 1 Font 24/Smallcaps Map View 50x35 Zoom Use 0% Tactical HUD 1 Map Filters NONE Filters NONE Steam 1 RUN: 692260aa-a666-410e-b7ae-cd3e76573c60